[Event "44th Chess Olympiad Open 2022"]
[Site "Chennai"]
[Date "2022.08.05"]
[Round "7.11"]
[White "Zhao, Zong-Yuan"]
[Black "Mousavi, Seyed Khalil"]
[Result "0-1"]
[ECO "E11"]
[WhiteElo "2513"]
[BlackElo "2537"]
[Annotator "TA"]
[PlyCount "96"]
[EventDate "2022.07.29"]
[EventType "team-tourn"]
[EventCountry "IND"]
[SourceTitle "playchess.com"]
[Source "ChessBase"]
[SourceQuality "1"]
[WhiteTeam "Australia"]
[BlackTeam "Iran"]
[WhiteTeamCountry "AUS"]
[BlackTeamCountry "IRI"]
[TimeControl "40/5400+30:1800+30"]

{[%evp 12,96,20,0,14,8,20,18,38,35,54,54,66,54,65,62,74,71,67,72,70,69,63,67,57,25,89,72,86,44,54,49,48,55,55,50,49,49,29,28,68,59,112,117,116,120,120,103,147,127,156,116,211,215,260,269,322,323,293,283,458,242,283,277,288,289,228,253,446,200,388,321,394,-697,-689,-1085,-854,-854,-810,-1061,-1048,-1864,-1802,-7254,-5822,-1761,-860]} 1. d4 {[%emt 0:00:08]} Nf6 {[%emt 0:00:23]} 2. c4 {[%emt 0:00:03]} e6 {[%emt 0:00:14]} 3. Nf3 {[%emt 0:00:09]} Bb4+ {[%emt 0:00:50]} 4. Nbd2 {[%emt 0:00:31]} O-O {[%emt 0:00:53]} 5. a3 {[%emt 0:01:41]} Be7 {[%emt 0:00:19]} 6. e3 {[%emt 0:00:37]} d5 {[%emt 0:03:34]} 7. b4 {[%emt 0:00:52]} b6 {[%emt 0:06:16] E11: Bogo-Indian.} 8. Bb2 {[%emt 0:04:21] was the old line (8.c5).} Bb7 {[%emt 0:05:17]} 9. c5 {[%emt 0:11:08]} Ne4 {[%emt 0:00:23] [#] The position is equal.} 10. Be2 $146 {[%emt 0:08:01]} ({Predecessor:} 10. Bd3 f5 11. Rc1 c6 12. Ne5 Nxd2 13. Qxd2 Nd7 14. Nxd7 Qxd7 15. a4 bxc5 16. bxc5 {0-1 (77) Cerveny,M (2432)-Sanz Wawer,D (2103) Tallinn 2019}) 10... f5 {[%emt 0:05:10]} 11. Ne5 {[%emt 0:00:41]} Nc6 {[%emt 0:03:54]} 12. Ndf3 {[%emt 0:13:53]} bxc5 {[%emt 0:07:37]} 13. dxc5 {[%emt 0:06:46]} a5 {[%emt 0:03:00]} 14. Nxc6 {[%emt 0:09:00]} Bxc6 {[%emt 0:00:14]} 15. Ne5 {[%emt 0:00:02]} Qe8 {[%emt 0:09:48]} 16. f3 {[%emt 0:04:13]} (16. Nxc6 Qxc6 17. f3 Bh4+ 18. g3 Bf6 19. Bxf6 Nxf6 $11) 16... Ng5 {[%emt 0:02:16]} 17. Nxc6 {[%emt 0:08:57]} Qxc6 {[%emt 0:00:10]} 18. Bd4 {[%emt 0:11:25]} Nf7 {[%emt 0:07:55]} (18... Qb7 $11 {remains equal.}) 19. b5 $16 {[%emt 0:00:00]} Qd7 {[%emt 0:00:07]} 20. Rc1 {[%emt 0:00:00]} e5 {[%emt 0:00:19]} 21. Bb2 {[%emt 0:00:00]} Bg5 {[%emt 0:02:27]} 22. Qd2 {[%emt 0:00:36]} f4 {[%emt 0:08:47]} 23. e4 {[%emt 0:01:24]} Bh4+ {[%emt 0:00:26]} 24. Kd1 {[%emt 0:03:08]} d4 {[%emt 0:06:02]} 25. Bc4 {[%emt 0:02:03]} Kh8 {[%emt 0:01:14]} 26. a4 {[%emt 0:00:43]} Be7 {[%emt 0:03:19]} (26... c6 $14) 27. Bd5 {[%emt 0:01:25]} Rab8 {[%emt 0:01:16]} 28. Qxa5 {[%emt 0:00:56]} Nd8 {[%emt 0:00:07]} 29. Qa7 {[%emt 0:04:00]} Ne6 {[%emt 0:02:46]} 30. Ba3 {[%emt 0:00:08]} (30. c6 Qd6 31. Qa5 (31. Bxe6 $2 Qxe6 32. Kc2 Qa2 $19) 31... Ra8 $17) 30... d3 {[%emt 0:01:07]} 31. Rc3 {[%emt 0:03:58]} (31. c6 $6 Qe8 32. Bb2 (32. Bxe6 $2 Bxa3 33. Bb3 Bxc1 $19) (32. Bxe7 Qxe7 33. Qf2 Nd4 $15) 32... Qg6 $11) 31... Nd4 {[%emt 0:01:29]} (31... Rfd8 $16 {was worth a try.}) 32. Rxd3 $18 {[%emt 0:00:24]} Qc8 {[%emt 0:01:31]} 33. Kd2 {[%emt 0:02:27]} Bh4 {[%emt 0:01:57] [#]} 34. Rxd4 $1 {[%emt 0:01:52]} exd4 {[%emt 0:00:09]} 35. c6 {[%emt 0:00:20][%csl LRd4,LRf8][%cal Oa3d6] And now Bd6! would win.} Bf2 $2 {[%emt 0:04:05] [#]} (35... Re8 36. Qxd4 Qd8) 36. Qc5 {[%emt 0:01:03]} (36. Bxf8 Qxf8 37. Rb1 (37. Qxc7 $2 Qb4+ 38. Ke2 Rf8 $19) 37... Be3+ 38. Kd1 Re8 $18) (36. Bd6 $142 $1 {[%mdl 512]} Qd8 (36... cxd6 37. c7) 37. Qxc7 (37. Bxf8 Qxf8 38. Rb1 Re8 $18)) 36... Rf6 {[%emt 0:01:01]} 37. Rf1 {[%emt 0:00:33]} Be3+ {[%emt 0:00:09]} 38. Kd3 {[%emt 0:00:01]} Rg6 {[%emt 0:02:29]} 39. Qc2 {[%emt 0:00:28]} Qd8 $2 {[%emt 0:00:07]} (39... Ra8 40. Bc5 Rh6) 40. Bc5 {[%emt 0:01:42]} (40. Rb1 $142 {[%cal Ob5b6] Black must now prevent b6!} Qe8 41. h4) 40... Rg5 $2 {[%emt 0:02:52]} (40... Qh4) 41. Qa2 {[%emt 0:30:46]} Qf6 {[%emt 0:31:06] Hoping for ...Qg6.} 42. Rc1 $4 {[%emt 0:00:00][%mdl 8192]} Bxc1 $19 {[%emt 0:00:00] Black is clearly winning.} 43. a5 {[%emt 0:00:00]} Rxb5 {[%emt 0:00:00]} 44. Qc4 {[%emt 0:00:00]} Rb1 {[%emt 0:00:00]} 45. Bxd4 {[%emt 0:00:00]} Qd6 {[%emt 0:00:00] Strongly threatening ...Be3.} 46. Bc5 {[%emt 0:00:00] Inhibits Be3.} Qd8 {[%emt 0:00:00]} 47. a6 {[%emt 0:00:00]} Rxg2 {[%emt 0:00:00] ( -> ...Rd2+)} 48. a7 {[%emt 0:00:00]} Rd2+ {[%emt 0:00:00] Weighted Error Value: White=0.67/Black=0.39} 0-1

[Event "44th Chess Olympiad Open 2022"]
[Site "Chennai"]
[Date "2022.08.05"]
[Round "7.12"]
[White "Berkes, Ferenc"]
[Black "Dragnev, Valentin"]
[Result "1-0"]
[ECO "D35"]
[WhiteElo "2649"]
[BlackElo "2557"]
[Annotator "RC"]
[PlyCount "107"]
[EventDate "2022.07.29"]
[EventType "team-tourn"]
[EventCountry "IND"]
[SourceTitle "playchess.com"]
[Source "ChessBase"]
[SourceQuality "1"]
[WhiteTeam "Hungary"]
[BlackTeam "Austria"]
[WhiteTeamCountry "HUN"]
[BlackTeamCountry "AUT"]
[TimeControl "40/5400+30:1800+30"]

1. d4 {[%emt 0:00:03]} Nf6 {[%emt 0:00:10]} 2. Nf3 {[%emt 0:00:08]} d5 {[%emt 0:00:28]} 3. c4 {[%emt 0:00:17]} e6 {[%emt 0:00:08]} 4. cxd5 {[%emt 0:00:16]} exd5 {[%emt 0:00:25]} 5. Nc3 {[%emt 0:00:05]} h6 {[%emt 0:09:09]} 6. Bf4 {[%emt 0:02:15]} Bd6 {[%emt 0:00:19]} 7. Bxd6 {[%emt 0:00:46]} Qxd6 {[%emt 0:00:08]} 8. Qc2 {[%emt 0:00:14]} O-O {[%emt 0:12:54]} 9. e3 {[%emt 0:00:39]} Be6 {[%emt 0:04:07]} 10. Bd3 {[%emt 0:05:27]} Nbd7 {[%emt 0:00:22]} 11. O-O {[%emt 0:00:11]} Rac8 {[%emt 0:04:32]} 12. h3 {[%emt 0:30:59]} Rfe8 {[%emt 0:06:52]} 13. Rfd1 {[%emt 0:03:38]} c6 {[%emt 0:08:28]} 14. Rac1 {[%emt 0:00:34]} Qe7 {[%emt 0:03:01]} 15. b3 {[%emt 0:01:30]} Nf8 {[%emt 0:07:33]} 16. Ne2 {[%emt 0:00:17]} Rc7 {[%emt 0:05:37]} 17. Qc5 {[%emt 0:04:12]} a6 {[%emt 0:03:09]} 18. Qxe7 {[%emt 0:00:27]} Rexe7 {[%emt 0:00:41]} 19. a4 {[%emt 0:02:58]} Ne8 {[%emt 0:00:44]} 20. Nf4 {[%emt 0:04:23]} Nd6 {[%emt 0:00:41]} 21. g4 {[%emt 0:05:16]} g5 {[%emt 0:03:22]} 22. Nxe6 {[%emt 0:05:57]} Nxe6 {[%emt 0:00:39]} 23. Kg2 {[%emt 0:00:32]} f6 {[%emt 0:02:58]} 24. h4 {[%emt 0:05:41]} Rg7 {[%emt 0:07:55]} 25. hxg5 {[%emt 0:06:11]} hxg5 {[%emt 0:00:07]} 26. Rh1 {[%emt 0:00:15]} Kf7 {[%emt 0:00:46]} 27. Ng1 {[%emt 0:04:24]} Nf8 {[%emt 0:08:12]} 28. Ne2 {[%emt 0:00:24]} Ng6 {[%emt 0:00:13]} 29. Ng3 {[%emt 0:01:01]} Nh4+ {[%emt 0:00:33]} 30. Kf1 {[%emt 0:00:07]} Rg8 {[%emt 0:00:44]} 31. Ke2 {[%emt 0:00:17]} Rcc8 {[%emt 0:01:57]} 32. f3 {[%emt 0:04:30]} Rh8 {[%emt 0:01:10]} 33. Rh2 {[%emt 0:02:40]} Nhf5 {[%emt 0:02:30]} 34. Rxh8 {[%emt 0:03:25]} Nxg3+ {[%emt 0:00:16]} 35. Kf2 {[%emt 0:00:12]} Nge4+ {[%emt 0:02:06]} 36. fxe4 {[%emt 0:00:07]} Rxh8 {[%emt 0:00:03]} 37. exd5 {[%emt 0:00:08]} cxd5 {[%emt 0:00:11]} 38. Rc7+ {[%emt 0:02:21]} Ke6 {[%emt 0:00:46]} 39. Bh7 {[%emt 0:00:39]} Rb8 {[%emt 0:01:58]} 40. Kf3 {[%emt 0:04:15]} f5 {[%emt 0:03:53]} 41. Bxf5+ {[%emt 0:07:14]} Nxf5 {[%emt 0:00:37]} 42. gxf5+ {[%emt 0:00:05]} Kxf5 {[%emt 0:00:41]} 43. Re7 {[%emt 0:00:13]} Kf6 {[%emt 0:26:05]} 44. Re5 {[%emt 0:02:12]} Rd8 {[%emt 0:00:15]} 45. Kg4 {[%emt 0:00:40]} a5 {[%emt 0:01:17]} 46. Rxg5 {[%emt 0:03:34]} Rd7 {[%emt 0:04:07]} 47. Kf4 {[%emt 0:00:37]} Rd8 {[%emt 0:00:19]} 48. Rh5 {[%emt 0:05:35]} Kg6 {[%emt 0:00:27]} 49. Rf5 {[%emt 0:02:11]} Rd6 {[%emt 0:00:13]} 50. Rg5+ {[%emt 0:01:12]} Kf6 {[%emt 0:00:10]} 51. Rh5 {[%emt 0:00:23]} Kg6 {[%emt 0:00:07]} 52. Rf5 {[%emt 0:00:15]} Rd8 {[%emt 0:00:47]} 53. e4 {[%emt 0:06:52]} dxe4 {[%emt 0:00:24]} 54. Kxe4 {[%emt 0:00:16]} 1-0

[Event "44th Chess Olympiad Open 2022"]
[Site "Chennai"]
[Date "2022.08.05"]
[Round "7.12"]
[White "Ragger, Markus"]
[Black "Erdos, Viktor"]
[Result "0-1"]
[ECO "B30"]
[WhiteElo "2647"]
[BlackElo "2586"]
[Annotator "RC"]
[PlyCount "80"]
[EventDate "2022.07.29"]
[EventType "team-tourn"]
[EventCountry "IND"]
[SourceTitle "playchess.com"]
[Source "ChessBase"]
[SourceQuality "1"]
[WhiteTeam "Austria"]
[BlackTeam "Hungary"]
[WhiteTeamCountry "AUT"]
[BlackTeamCountry "HUN"]
[TimeControl "40/5400+30:1800+30"]

1. e4 {[%emt 0:00:01]} c5 {[%emt 0:00:05]} 2. Nf3 {[%emt 0:00:04]} Nc6 {[%emt 0:00:05]} 3. Bb5 {[%emt 0:01:03]} e6 {[%emt 0:00:06]} 4. O-O {[%emt 0:00:30]} Nge7 {[%emt 0:00:06]} 5. Re1 {[%emt 0:00:29]} Ng6 {[%emt 0:00:16]} 6. c3 {[%emt 0:01:57]} d5 {[%emt 0:00:06]} 7. h4 {[%emt 0:00:36]} dxe4 {[%emt 0:01:07]} 8. Rxe4 {[%emt 0:00:23]} Bd6 {[%emt 0:00:06]} 9. Bxc6+ {[%emt 0:06:35]} bxc6 {[%emt 0:00:08]} 10. h5 {[%emt 0:00:02]} Ne7 {[%emt 0:01:38]} 11. d4 {[%emt 0:00:18]} Nf5 {[%emt 0:13:42]} 12. Na3 {[%emt 0:28:42]} cxd4 {[%emt 0:17:59]} 13. cxd4 {[%emt 0:05:43]} Be7 {[%emt 0:24:34]} 14. Bf4 {[%emt 0:05:40]} Bb7 {[%emt 0:13:24]} 15. Qb3 {[%emt 0:03:44]} Qc8 {[%emt 0:01:06]} 16. Ree1 {[%emt 0:06:31]} O-O {[%emt 0:00:50]} 17. Rac1 {[%emt 0:02:32]} Rd8 {[%emt 0:01:59]} 18. Be5 {[%emt 0:02:22]} Rd5 {[%emt 0:09:41]} 19. Nc4 {[%emt 0:03:14]} Qd7 {[%emt 0:01:03]} 20. Bh2 {[%emt 0:05:34]} Rb5 {[%emt 0:00:39]} 21. Qd3 {[%emt 0:03:02]} Rd8 {[%emt 0:01:18]} 22. a4 {[%emt 0:06:01]} Rd5 {[%emt 0:00:11]} 23. Qb3 {[%emt 0:02:41]} Ba8 {[%emt 0:00:28]} 24. Nce5 {[%emt 0:00:39]} Qe8 {[%emt 0:00:18]} 25. Rc4 {[%emt 0:01:56]} c5 {[%emt 0:04:52]} 26. dxc5 {[%emt 0:00:25]} Rxc5 {[%emt 0:00:04]} 27. Rxc5 {[%emt 0:02:33]} Bxc5 {[%emt 0:00:02]} 28. Rc1 {[%emt 0:04:12]} Bb6 {[%emt 0:01:14]} 29. Bf4 {[%emt 0:02:07]} Bd5 {[%emt 0:00:38]} 30. Qa3 {[%emt 0:02:57]} f6 {[%emt 0:00:21]} 31. a5 {[%emt 0:01:30]} Bd4 {[%emt 0:03:10]} 32. Nxd4 {[%emt 0:01:50]} Nxd4 {[%emt 0:00:05]} 33. Qe3 {[%emt 0:00:03]} fxe5 {[%emt 0:00:41]} 34. Bxe5 {[%emt 0:00:04]} Nc6 {[%emt 0:00:22]} 35. h6 {[%emt 0:00:13]} Qg6 {[%emt 0:00:27]} 36. Bg3 {[%emt 0:01:46]} Qxh6 {[%emt 0:00:11]} 37. Qc5 {[%emt 0:00:01]} Qd2 {[%emt 0:00:48]} 38. Bh4 {[%emt 0:00:56]} Rf8 {[%emt 0:00:16]} 39. Rc3 {[%emt 0:00:18]} Qd1+ {[%emt 0:01:39]} 40. Kh2 {[%emt 0:00:01]} Qg4 {[%emt 0:00:10]} 0-1

[Event "44th Chess Olympiad Open 2022"]
[Site "Chennai"]
[Date "2022.08.05"]
[Round "7.12"]
[White "Kantor, Gergely"]
[Black "Horvath, Dominik"]
[Result "1-0"]
[ECO "C82"]
[WhiteElo "2582"]
[BlackElo "2488"]
[Annotator "ChessBase"]
[PlyCount "83"]
[EventDate "2022.07.29"]
[EventType "team-tourn"]
[EventCountry "IND"]
[SourceTitle "playchess.com"]
[Source "ChessBase"]
[SourceQuality "1"]
[WhiteTeam "Hungary"]
[BlackTeam "Austria"]
[WhiteTeamCountry "HUN"]
[BlackTeamCountry "AUT"]
[TimeControl "40/5400+30:1800+30"]

1. e4 {[%emt 0:00:09]} e5 {[%emt 0:00:09]} 2. Nf3 {[%emt 0:00:03]} Nc6 {[%emt 0:00:06]} 3. Bb5 {[%emt 0:00:03]} a6 {[%emt 0:00:05]} 4. Ba4 {[%emt 0:00:02]} Nf6 {[%emt 0:00:19]} 5. O-O {[%emt 0:00:14]} Nxe4 {[%emt 0:00:20]} 6. d4 {[%emt 0:00:15]} b5 {[%emt 0:00:04]} 7. Bb3 {[%emt 0:00:03]} d5 {[%emt 0:00:05]} 8. dxe5 {[%emt 0:00:08]} Be6 {[%emt 0:00:04]} 9. c3 {[%emt 0:01:07]} Bc5 {[%emt 0:00:24]} 10. Nbd2 {[%emt 0:01:42]} O-O {[%emt 0:00:24]} 11. Bc2 {[%emt 0:00:49]} Nxf2 {[%emt 0:00:07]} 12. Rxf2 {[%emt 0:02:58]} Bxf2+ {[%emt 0:00:07]} 13. Kxf2 {[%emt 0:00:04]} f6 {[%emt 0:00:03]} 14. exf6 {[%emt 0:02:58]} Qxf6 {[%emt 0:00:05]} 15. Nf1 {[%emt 0:00:13]} Ne5 {[%emt 0:08:03]} 16. Be3 {[%emt 0:01:56]} Rae8 {[%emt 0:03:58]} 17. Bc5 {[%emt 0:02:33]} Qh4+ {[%emt 0:23:49]} 18. Kg1 {[%emt 0:04:26]} Rxf3 {[%emt 0:00:55]} 19. gxf3 {[%emt 0:05:47]} Qh5 {[%emt 0:04:01]} 20. Ng3 {[%emt 0:39:40]} Nxf3+ {[%emt 0:04:09]} 21. Kf2 {[%emt 0:00:27]} Qxh2+ {[%emt 0:00:12]} 22. Kxf3 {[%emt 0:00:16]} h5 {[%emt 0:01:35]} 23. Bf5 {[%emt 0:18:04]} h4 {[%emt 0:00:38]} 24. Qg1 {[%emt 0:02:08]} Qxb2 {[%emt 0:08:24]} 25. Re1 {[%emt 0:05:01]} Qxc3+ {[%emt 0:08:13]} 26. Qe3 {[%emt 0:01:27]} Qxe3+ {[%emt 0:06:47]} 27. Rxe3 {[%emt 0:00:07]} Kf7 {[%emt 0:00:02]} 28. Nh5 {[%emt 0:09:46]} d4 {[%emt 0:10:04]} 29. Bxe6+ {[%emt 0:00:49]} Rxe6 {[%emt 0:00:05]} 30. Rxe6 {[%emt 0:00:19]} Kxe6 {[%emt 0:00:04]} 31. Ke4 {[%emt 0:00:24]} g5 {[%emt 0:01:37]} 32. Ng7+ {[%emt 0:00:40]} Kd7 {[%emt 0:00:26]} 33. Nf5 {[%emt 0:00:27]} Kc6 {[%emt 0:04:41]} 34. Kxd4 {[%emt 0:00:27]} h3 {[%emt 0:00:04]} 35. Bb4 {[%emt 0:00:56]} Kb6 {[%emt 0:01:10]} 36. Kd5 {[%emt 0:00:23]} h2 {[%emt 0:02:33]} 37. Ng3 {[%emt 0:00:08]} c6+ {[%emt 0:00:03]} 38. Kd4 {[%emt 0:00:32]} a5 {[%emt 0:00:42]} 39. Be7 {[%emt 0:00:53]} g4 {[%emt 0:00:29]} 40. Bd8+ {[%emt 0:00:11]} Ka6 {[%emt 0:00:03]} 41. Kc5 {[%emt 0:31:06]} b4 {[%emt 0:30:09]} 42. Kc4 {[%emt 0:00:00]} 1-0

[Event "44th Chess Olympiad Open 2022"]
[Site "Chennai"]
[Date "2022.08.05"]
[Round "7.12"]
[White "Blohberger, Felix"]
[Black "Banusz, Tamas"]
[Result "0-1"]
[ECO "B30"]
[WhiteElo "2492"]
[BlackElo "2611"]
[Annotator "ChessBase"]
[PlyCount "132"]
[EventDate "2022.07.29"]
[EventType "team-tourn"]
[EventCountry "IND"]
[SourceTitle "playchess.com"]
[Source "ChessBase"]
[SourceQuality "1"]
[WhiteTeam "Austria"]
[BlackTeam "Hungary"]
[WhiteTeamCountry "AUT"]
[BlackTeamCountry "HUN"]
[TimeControl "40/5400+30:1800+30"]

1. e4 {[%emt 0:00:10]} c5 {[%emt 0:00:07]} 2. Nf3 {[%emt 0:00:00]} Nc6 {[%emt 0:00:05]} 3. Bb5 {[%emt 0:00:14]} e6 {[%emt 0:00:08]} 4. O-O {[%emt 0:01:27]} Nge7 {[%emt 0:00:12]} 5. d4 {[%emt 0:04:34]} cxd4 {[%emt 0:00:32]} 6. Nxd4 {[%emt 0:00:06]} Ng6 {[%emt 0:00:16]} 7. Be2 {[%emt 0:03:33]} Be7 {[%emt 0:02:10]} 8. c4 {[%emt 0:00:25]} O-O {[%emt 0:01:02]} 9. Nc3 {[%emt 0:00:09]} b6 {[%emt 0:01:19]} 10. Be3 {[%emt 0:04:57]} Bb7 {[%emt 0:00:30]} 11. f3 {[%emt 0:03:53]} Nxd4 {[%emt 0:07:10]} 12. Bxd4 {[%emt 0:00:08]} Qc7 {[%emt 0:03:56]} 13. Nb5 {[%emt 0:05:47]} Qb8 {[%emt 0:09:30]} 14. Bf2 {[%emt 0:12:22]} Nf4 {[%emt 0:08:30]} 15. Bg3 {[%emt 0:14:09]} a6 {[%emt 0:02:33]} 16. Nc3 {[%emt 0:00:36]} Bd6 {[%emt 0:04:53]} 17. Kh1 {[%emt 0:03:04]} Rd8 {[%emt 0:03:42]} 18. Qd2 {[%emt 0:03:44]} Be5 {[%emt 0:01:50]} 19. Rfd1 {[%emt 0:01:14]} Nxe2 {[%emt 0:12:09]} 20. Bxe5 {[%emt 0:02:22]} Qxe5 {[%emt 0:00:04]} 21. Qxe2 {[%emt 0:00:11]} Bc6 {[%emt 0:03:36]} 22. a4 {[%emt 0:04:01]} Rab8 {[%emt 0:05:10]} 23. Rd2 {[%emt 0:08:21]} Qc5 {[%emt 0:01:41]} 24. Qd3 {[%emt 0:02:35]} h6 {[%emt 0:03:37]} 25. h3 {[%emt 0:04:29]} d6 {[%emt 0:06:40]} 26. Rad1 {[%emt 0:08:13]} Qb4 {[%emt 0:02:47]} 27. Qe2 {[%emt 0:01:21]} Bxa4 {[%emt 0:03:55]} 28. Nxa4 {[%emt 0:00:25]} Qxa4 {[%emt 0:00:04]} 29. e5 {[%emt 0:03:37]} b5 {[%emt 0:03:12]} 30. cxb5 {[%emt 0:06:32]} Qxb5 {[%emt 0:03:43]} 31. Qxb5 {[%emt 0:01:01]} Rxb5 {[%emt 0:00:06]} 32. exd6 {[%emt 0:00:52]} Rb6 {[%emt 0:01:42]} 33. d7 {[%emt 0:00:57]} Kf8 {[%emt 0:03:42]} 34. Rc1 {[%emt 0:00:32]} Rb7 {[%emt 0:01:30]} 35. Rc6 {[%emt 0:00:15]} Rdxd7 {[%emt 0:01:46]} 36. Rxd7 {[%emt 0:00:09]} Rxd7 {[%emt 0:00:01]} 37. Rxa6 {[%emt 0:00:08]} Rb7 {[%emt 0:00:03]} 38. Ra2 {[%emt 0:00:06]} Ke7 {[%emt 0:00:13]} 39. Kg1 {[%emt 0:00:04]} Kf6 {[%emt 0:00:28]} 40. Kf2 {[%emt 0:00:21]} e5 {[%emt 0:01:25]} 41. Ke3 {[%emt 0:11:53]} Kg5 {[%emt 0:03:59]} 42. Kd3 {[%emt 0:01:22]} f5 {[%emt 0:01:01]} 43. Kc4 {[%emt 0:06:46]} Kf4 {[%emt 0:00:28]} 44. b4 {[%emt 0:00:46]} e4 {[%emt 0:00:32]} 45. fxe4 {[%emt 0:00:20]} fxe4 {[%emt 0:00:06]} 46. b5 {[%emt 0:00:55]} e3 {[%emt 0:05:22]} 47. Rb2 {[%emt 0:01:09]} Rd7 {[%emt 0:07:29]} 48. b6 {[%emt 0:06:32]} Ke4 {[%emt 0:04:02]} 49. Ra2 {[%emt 0:04:09]} Rd1 {[%emt 0:05:53]} 50. Kc3 {[%emt 0:02:42]} Rc1+ {[%emt 0:03:05]} 51. Rc2 {[%emt 0:00:05]} Rb1 {[%emt 0:00:40]} 52. Rb2 {[%emt 0:01:26]} Rxb2 {[%emt 0:00:17]} 53. Kxb2 {[%emt 0:00:03]} e2 {[%emt 0:00:05]} 54. b7 {[%emt 0:00:04]} e1=Q {[%emt 0:00:03]} 55. b8=Q {[%emt 0:00:05]} Qd2+ {[%emt 0:00:37]} 56. Ka3 {[%emt 0:00:31]} Qc3+ {[%emt 0:01:32]} 57. Ka2 {[%emt 0:00:26]} Ke3 {[%emt 0:00:47]} 58. Qg3+ {[%emt 0:00:37]} Kd2 {[%emt 0:00:10]} 59. Qf2+ {[%emt 0:00:28]} Kd1 {[%emt 0:00:11]} 60. Qg1+ {[%emt 0:02:01]} Qe1 {[%emt 0:00:32]} 61. Qh2 {[%emt 0:00:38]} Qf2+ {[%emt 0:00:36]} 62. Ka1 {[%emt 0:00:55]} Qd4+ {[%emt 0:00:53]} 63. Ka2 {[%emt 0:00:12]} Ke1 {[%emt 0:03:13]} 64. Kb3 {[%emt 0:00:26]} Kf2 {[%emt 0:01:19]} 65. g4+ {[%emt 0:00:30]} Kf3 {[%emt 0:00:04]} 66. Ka3 {[%emt 0:00:51]} Qe3+ {[%emt 0:00:16]} 0-1

[Event "44th Chess Olympiad Open 2022"]
[Site "Chennai"]
[Date "2022.08.05"]
[Round "7.13"]
[White "Duda, Jan-Krzysztof"]
[Black "Paragua, Mark"]
[Result "0-1"]
[ECO "B90"]
[WhiteElo "2750"]
[BlackElo "2461"]
[Annotator "TA"]
[PlyCount "72"]
[EventDate "2022.07.29"]
[EventType "team-tourn"]
[EventCountry "IND"]
[SourceTitle "playchess.com"]
[Source "ChessBase"]
[SourceQuality "1"]
[WhiteTeam "Poland"]
[BlackTeam "Philippines"]
[WhiteTeamCountry "POL"]
[BlackTeamCountry "PHI"]
[TimeControl "40/5400+30:1800+30"]

{[%evp 12,72,10,14,39,10,16,21,-3,13,18,22,18,16,17,9,15,1,25,25,17,18,26,0,0,-11,-22,-12,-29,-25,-16,-40,-45,-31,-40,-37,-12,-153,-145,-152,-143,-141,-151,-170,-173,-176,-178,-237,-237,-201,-209,-238,-238,-219,-154,-154,-125,-358,-381,-781,-781,-781,-771]} 1. e4 {[%emt 0:00:03]} c5 {[%emt 0:00:07]} 2. Nf3 {[%emt 0:00:05]} d6 {[%emt 0:00:06]} 3. d4 {[%emt 0:00:08]} cxd4 {[%emt 0:00:06]} 4. Nxd4 {[%emt 0:00:05]} Nf6 {[%emt 0:00:08]} 5. Nc3 {[%emt 0:00:07]} a6 {[%emt 0:00:05]} 6. h3 {[%emt 0:00:06]} e5 {[%emt 0:00:11]} 7. Nde2 {[%emt 0:00:07]} h5 {[%emt 0:00:08] B90: Sicilian Najdorf: Unusual White 6th moves, 6 Be3 Ng4 and 6 Be3 e5.} 8. Bg5 {[%emt 0:00:16]} Be6 {[%emt 0:00:11]} 9. Bxf6 {[%emt 0:00:12]} Qxf6 {[%emt 0:00:08] The position is equal.} 10. Nd5 {[%emt 0:00:06]} Qd8 {[%emt 0:00:05]} 11. Qd3 {[%emt 0:00:07]} Nd7 {[%emt 0:01:03]} 12. O-O-O {[%emt 0:00:08]} g6 {[%emt 0:00:04]} 13. Kb1 {[%emt 0:00:27]} Nc5 {[%emt 0:03:01]} 14. Qa3 {[%emt 0:00:09] is now more promising than 14.Qf3.} h4 {[%emt 0:07:14]} 15. Nec3 {[%emt 0:01:35]} Bg7 {[%emt 0:06:56]} 16. Ne3 {[%emt 0:03:05] [#]} O-O $146 {[%emt 0:12:36]} ({Predecessor:} 16... b5 17. b4 Nb7 18. Ncd5 O-O 19. Qd3 a5 20. c3 axb4 21. cxb4 Qb8 22. Be2 Nd8 {1-0 (58) Alinasab,M (2317)-Vantika,A (2238) Tornelo INT 2021}) 17. b4 {[%emt 0:06:28]} (17. Bc4 $5 {[%cal Rc4e6]}) 17... Nd7 {[%emt 0:02:52]} 18. Rxd6 {[%emt 0:00:08]} Qc7 {[%emt 0:04:21] Prevents Bc4.} 19. Rd2 {[%emt 0:01:33]} Nb6 {[%emt 0:01:04]} 20. Ncd5 {[%emt 0:11:08]} Bxd5 {[%emt 0:02:12]} 21. Rxd5 {[%emt 0:00:08]} Nxd5 {[%emt 0:08:57]} 22. Nxd5 {[%emt 0:00:10]} Qd8 {[%emt 0:00:38]} 23. Qe3 {[%emt 0:03:07]} a5 {[%emt 0:05:36]} 24. a3 {[%emt 0:02:58]} (24. b5 $11) 24... axb4 $17 {[%emt 0:00:28]} 25. axb4 {[%emt 0:00:06]} Qd7 {[%emt 0:02:43] aiming for ...Qa4.} 26. Bc4 {[%emt 0:00:41]} Qa4 $1 {[%emt 0:02:55][%csl Ga8][%cal Ra4a1]} 27. Qc3 {[%emt 0:03:32] Prevents Qa1+.} b5 {[%emt 0:00:47]} 28. Bb3 {[%emt 0:03:33]} ({Avoid the trap} 28. Nb6 $2 Qa7 29. Bxf7+ (29. Nxa8 $2 bxc4 30. Qa1 Qb7 $19) 29... Kxf7 $19) 28... Qa7 {[%emt 0:00:07]} 29. Rf1 {[%emt 0:09:44]} (29. Qb2 $142) 29... Rfc8 $19 {[%emt 0:06:58][%cal Bf8c8,Bc8c6,Bc6a6][%mdl 32]} 30. Qb2 {[%emt 0:00:09]} Rc6 {[%emt 0:00:18] Strongly threatening ...Ra6.} 31. Nc3 {[%emt 0:03:04]} Ra6 $40 {[%emt 0:08:55][%mdl 128] ( -> ...Ra1+). Black goes for the king.} 32. Na2 {[%emt 0:00:26]} Qd4 {[%emt 0:01:54]} 33. Bd5 {[%emt 0:05:57]} Rd8 {[%emt 0:01:59]} 34. Qb3 {[%emt 0:21:45]} (34. Qxd4 $17 {might work better.} exd4 35. Rd1) 34... Kh7 {[%emt 0:01:36]} ({Inferior is} 34... Rc8 35. Bxf7+ Kh8 36. Qd3 $17) 35. Qd3 $2 {[%emt 0:06:52] [#]} (35. Rh1) 35... Rxd5 $1 {[%emt 0:01:25][%mdl 512]} 36. exd5 {[%emt 0:00:12] [#]} Qa7 $1 {[%emt 0:00:03] Weighted Error Value: White=0.35/Black=0.05 (flawless)} 0-1